Cogmind - Beta 16 @@@ ROGUE MODE // 2025.10.31 @ 05:28:00 Player: Naughtyusername Result: Self-destructed Performance ------------- Evolutions (6) 3000 Regions Visited (17) 3400 Robots Destroyed (193) 965 Value Destroyed (6887) 6887 Prototype IDs (51) 1020 Alien Tech Used (2) 400 Bonus (3753) 3753 TOTAL SCORE: 19425 Bonus ------- High Alert Combat Kills 246 Follower Combat Kills 2124 Network Hubs Disabled 400 Registered with UFD 300 Met Optimus in HQ 500 Met Zhirov 300 Built Enhanced Grunts 300 A7 Reached Mainframe 300 Met R17 at Cetus 500 Friendly Fire -1217 Cogmind --------- Core Integrity 805/1150 Matter 300/300 Energy 2/100 System Corruption 5% Temperature Cool (0) Movement Walking (115) Location -4/Factory Parts ------- > --- POWER (2) -------- (None) > --- PROPULSION (6) --- Advanced Myomer Leg Advanced Myomer Leg Advanced Myomer Leg Enhanced Biometal Leg > --- UTILITY (9) ------ Advanced Heat Sink High-capacity Storage Unit Enhanced Optical Array Advanced Signal Interpreter Experimental Targeting Computer Core Analyzer Medium Regenerative Plating Advanced Thermal Shield > --- WEAPON (2) ------- Heavy Plasma Cannon Heavy Phase Cannon > --- INVENTORY (20) --- Advanced Heat Sink Deep Structural Scanner Long-range Sensor Array Surveybot 17 Chip Improved Armor Integrity Analyzer Centrium Medium Armor Plating Centrium Medium Armor Plating Graphene Brace Experimental EM Shield A0-MCA's Component Scanner Mapping Drone Bay (3/3) Heavy Plasma Cannon Proton Missile Launcher Plasma Cutter CPS Tube (2) CPS Tube (1) Peak State ------------ > --- POWER ------------ Light Antimatter Reactor Quantum Reactor > --- PROPULSION ------- Enhanced Flexi-carbon Leg Advanced VSS Leg Advanced Myomer Leg Advanced Myomer Leg Advanced Myomer Leg Enhanced Biometal Leg > --- UTILITY ---------- Advanced Heat Sink High-capacity Storage Unit Enhanced Optical Array Long-range Sensor Array Advanced Signal Interpreter Experimental Targeting Computer Centrium Medium Armor Plating Medium Regenerative Plating Advanced Thermal Shield > --- WEAPON ----------- Heavy Plasma Cannon Heavy Phase Cannon > --- INVENTORY -------- Light Antimatter Reactor Advanced Heat Sink Deep Structural Scanner Surveybot 17 Chip Core Analyzer Improved Armor Integrity Analyzer Experimental Utility Shielding Centrium Medium Armor Plating Graphene Brace Experimental EM Shield A0-MCA's Component Scanner Mapping Drone Bay Heavy Plasma Cannon Proton Missile Launcher Plasma Cutter CPS Tube CPS Tube [Rating: 135] Favorites ----------- Power Quantum Reactor Engine Heavy Ion Engine Power Core Light Fission Core Reactor Quantum Reactor Propulsion Enhanced Flexi-carbon Leg Treads Advanced Treads Leg Enhanced Flexi-carbon Leg Wheel Wheel Hover Unit Improved Airjet Utility High-capacity Storage Unit Device Cooling System Storage High-capacity Storage Unit Processor Enhanced Optical Array Protection Improved Light Armor Plating Weapon Advanced Beam Cannon Energy Gun Medium Laser Energy Cannon Advanced Beam Cannon Ballistic Gun Assault Rifle Ballistic Cannon Bore Cannon Launcher Mini Grenade Launcher Special Weapon Plasma Cutter Build | -11 -10 -10 -9 -9 -9 -9 -6 -6 -6 -6 -6 -5 -5 -5 -5 -4 -4 ------- Run | Yrd Mat Min Mat Sto Rec Scr Fac Ext Cet Arc Hub Fac Upp Upp Zhi Pro Fac Slots Evolved 12 | . . . 2 . . . 6 . . . . 2 . . . . 2 Power 1 | . . . . . . . 1 . . . . . . . . . . Propulsion 4 | . . . 1 . . . 2 . . . . . . . . . 1 Utility 7 | . . . 1 . . . 3 . . . . 2 . . . . 1 Weapon . | . . . . . . . . . . . . . . . . . . Parts Attached 160 | 8 11 2 14 10 3 7 28 15 11 1 15 11 2 1 4 . 17 Power 17 | 1 2 . 1 1 . 1 2 2 2 . 3 . . . . . 2 Engine 8 | 1 2 . 1 1 . 1 1 1 . . . . . . . . . Core 1 | . . . . . . . . 1 . . . . . . . . . Reactor 8 | . . . . . . . 1 . 2 . 3 . . . . . 2 Propulsion 51 | 2 3 1 5 1 1 2 13 9 . . 7 . . 1 1 . 5 Treads 17 | 2 3 1 5 1 1 2 2 . . . . . . . . . . Leg 30 | . . . . . . . 8 9 . . 7 . . 1 1 . 4 Wheel 2 | . . . . . . . 2 . . . . . . . . . . Hover 2 | . . . . . . . 1 . . . . . . . . . 1 Flight . | . . . . . . . . . . . . . . . . . . Utility 54 | 2 3 1 3 3 2 2 10 . 5 . 3 8 2 . 3 . 7 Device 25 | 1 . 1 . 1 1 1 6 . 2 . 1 5 2 . . . 4 Storage 7 | 1 2 . . 1 . . . . 1 . . 1 . . 1 . . Processor 10 | . . . . . . . 3 . 1 . 1 2 . . . . 3 Hackware . | . . . . . . . . . . . . . . . . . . Protection 12 | . 1 . 3 1 1 1 1 . 1 . 1 . . . 2 . . Artifact . | . . . . . . . . . . . . . . . . . . Weapon 38 | 3 3 . 5 5 . 2 3 4 4 1 2 3 . . . . 3 Energy Gun 4 | 2 . . 1 . . . 1 . . . . . . . . . . Energy Cannon 11 | . . . . 3 . 1 1 1 . . . 3 . . . . 2 Ballistic Gun 12 | 1 3 . 2 . . 1 . 1 2 1 1 . . . . . . Ballistic Cannon 3 | . . . . . . . 1 1 1 . . . . . . . . Launcher 6 | . . . 2 2 . . . . . . 1 . . . . . 1 Special Weapon 2 | . . . . . . . . 1 1 . . . . . . . . Impact Weapon . | . . . . . . . . . . . . . . . . . . Slashing Weapon . | . . . . . . . . . . . . . . . . . . Piercing Weapon . | . . . . . . . . . . . . . . . . . . Special Melee Weapon . | . . . . . . . . . . . . . . . . . . Unidentified Prototypes 26 | . . 1 3 1 . . 1 . 5 . 6 3 . . 3 . 3 Corrupted Parts 8 | . . . . . . . . . 1 . 6 . . 1 . . . System Corruption 59 | . . . . . . . . . 7 . 42 . . 10 . . . Parts Lost 42 | . 3 1 . 3 3 . 13 3 1 . 2 5 . . . . 8 Power 9 | . 2 . . 1 . . . 1 1 . . . . . . . 4 Propulsion 14 | . 1 1 . 1 1 . 7 . . . 1 . . . . . 2 Utility 10 | . . . . 1 2 . 4 1 . . . 1 . . . . 1 Weapon 9 | . . . . . . . 2 1 . . 1 4 . . . . 1 Highest Loss Streak 6 | . 2 1 . 1 3 . 6 3 1 . 2 3 . . . . 6 To Critical Strikes 1 | . . . . 1 . . . . . . . . . . . . . Average Backups 15 | 1 12 14 14 14 15 10 17 19 19 20 19 18 20 20 20 20 19 Power 1 | . 1 1 1 2 3 . . . 1 2 1 1 1 1 . . . Propulsion 1 | . 2 2 1 2 2 1 2 2 . . . 2 2 1 2 3 1 Utility 6 | . 4 5 3 3 4 5 7 10 11 11 10 9 12 12 11 10 10 Weapon 3 | . 4 6 7 5 5 2 3 4 3 4 4 2 2 2 3 3 2 Tool/Special . | . . . . . . . . . . . . . . . . . . Unused Backups 64 | . 2 . 12 2 . 17 3 3 10 . 4 . . . 2 . 9 Power 7 | . . . 3 . . 2 . . 1 . 1 . . . . . . Propulsion 13 | . . . 2 1 . 5 2 2 . . . . . . . . 1 Utility 31 | . 1 . 3 . . 7 . 1 7 . 3 . . . 2 . 7 Weapon 11 | . 1 . 4 1 . 2 1 . 2 . . . . . . . . Tool/Special 2 | . . . . . . 1 . . . . . . . . . . 1 Average Slot Usage (%) 82 | . 94 100 99 99 99 39 91 99 98 100 99 99 100 100 89 100 99 Engine 5 | . 13 14 11 10 11 3 12 5 . . . . . . . . . Reactor 3 | . . . . . . . . 6 6 13 12 11 11 11 11 11 9 Treads 13 | . 27 28 33 32 32 10 16 . . . . . . . . . . Leg 11 | . . . . . . . 10 33 33 33 32 29 29 29 29 29 31 Device 6 | . 1 . . 7 11 3 12 13 11 6 6 10 11 11 13 15 15 Storage 9 | . 14 14 11 11 11 10 6 6 6 6 6 5 5 5 5 5 5 Processor 7 | . . . . . . . 8 20 20 20 20 23 23 23 20 17 19 Protection 7 | . 8 13 21 14 10 3 6 . 1 6 6 5 5 5 5 6 6 Energy Cannon 6 | . . . . 13 21 6 6 2 . . . 3 11 11 1 11 9 Ballistic Gun 6 | . 23 28 20 6 . . 2 4 4 13 12 6 . . . . . Peak Build Rating 135 | 7 8 15 28 28 27 31 70 79 100 100 113 127 120 120 123 123 135 Average Rating 48 | 5 7 8 23 26 26 11 46 74 85 100 103 120 115 114 105 115 126 On Entrance 65 | . 7 8 8 28 26 27 29 70 79 100 100 112 120 115 113 123 115 Avg Prop Armor Cover (%) 5 | . . . . . . . 12 . . . . 4 4 4 . . . Naked Turns 67 | . . . . . . 67 . . . . . . . . . . . Heaviest Build 121 | 13 30 28 40 61 61 64 80 81 95 95 104 111 109 109 121 121 112 Greatest Support 174 | 40 40 40 66 66 67 75 115 93 93 93 144 144 114 142 144 144 174 Greatest Overweight (x) 13 | . 1 . . 1 1 13 3 1 1 1 1 . . . . . . Average Overweight (x) . | . . . . . . 3 . . . 1 . . . . . . . Largest Inventory Capacity 20 | 8 15 15 15 20 20 20 20 20 20 20 20 20 20 20 20 20 20 Average Capacity 18 | 7 14 15 15 17 20 19 20 20 20 20 20 20 20 20 20 20 20 Most Carried 20 | 2 15 15 15 15 17 20 20 20 20 20 20 20 20 20 20 20 20 Average Carried 15 | 1 12 14 14 14 15 10 17 19 19 20 19 18 20 19 19 20 19 Final Capacity 20 | 8 15 15 15 20 20 20 20 20 20 20 20 20 20 20 20 20 20 Final Carried 20 | 2 15 14 15 14 17 20 20 20 20 20 19 20 20 20 20 20 16 Class Distribution -------------------- 41% | Commander-Mutant 26% | Mutant 18% | Scavenger-Skirmisher 12% | Scavenger-Mutant Dominant Class ---------------- Mutant | -10/Materials Mutant | -10/Mines Mutant | -9/Materials Mutant | -9/Storage Commander-Mutant | -9/Recycling Commander-Mutant | -9/Scraptown Mutant | -6/Factory Scavenger-Mutant | -6/Extension Commander-Mutant | -6/Cetus Commander-Mutant | -6/Archives Scavenger-Mutant | -6/Hub_04(d) Scavenger-Skirmisher | -5/Factory Scavenger-Skirmisher | -5/Upper Caves Scavenger-Skirmisher | -5/Upper Caves Scavenger-Mutant | -5/Zhirov Scavenger-Skirmisher | -4/Proximity Caves Scavenger-Skirmisher | -4/Factory Resources | -11 -10 -10 -9 -9 -9 -9 -6 -6 -6 -6 -6 -5 -5 -5 -5 -4 -4 ----------- Run | Yrd Mat Min Mat Sto Rec Scr Fac Ext Cet Arc Hub Fac Upp Upp Zhi Pro Fac Matter Collected 5652 | 283 446 53 509 549 73 37 521 663 340 134 542 525 117 93 . 394 373 Remotely . | . . . . . . . . . . . . . . . . . . Salvage Created 8651 | 29 785 50 812 1236 515 . 960 900 274 144 613 1366 133 40 . 151 643 Parts 411 | 4 52 2 45 71 20 . 41 36 23 4 27 54 7 . . 7 18 Haulers Intercepted 17 | . 2 . 4 4 . . . 1 . . . 6 . . . . . Recyclers Shooed 5 | . . . . 2 . . 1 . . . . . . . . . 2 Parts Field Recycled . | . . . . . . . . . . . . . . . . . . Retrieved Matter . | . . . . . . . . . . . . . . . . . . Parts Self-Destructed 16 | . . . . . . . . . . . . . 7 . . 9 . Prevented 2 | . . . . . . . . . . . . . . . . 2 . Parts Restored . | . . . . . . . . . . . . . . . . . . Kills | -11 -10 -10 -9 -9 -9 -9 -6 -6 -6 -6 -6 -5 -5 -5 -5 -4 -4 ------- Run | Yrd Mat Min Mat Sto Rec Scr Fac Ext Cet Arc Hub Fac Upp Upp Zhi Pro Fac Combat Hostiles Destroyed 142 | . 21 1 18 25 9 . 16 15 2 2 11 9 2 . . 2 9 Melee 1 | . . . 1 . . . . . . . . . . . . . . Guns 66 | . 21 1 12 15 . . 2 1 . 2 8 4 . . . . . Cannons 56 | . . . . 5 8 . 10 14 2 . . 5 2 . . 2 8 AOE 16 | . . . 5 4 . . 4 . . . 3 . . . . . . Classes Destroyed 20 | 1 4 . 4 2 3 . 1 2 . . 2 . . 1 . . . Worker 7 | . . . 3 . . . 1 . . . 1 2 . . . . . Builder 4 | . . . 1 . 1 . 1 . . . . 1 . . . . . Tunneler 2 | 1 1 . . . . . . . . . . . . . . . . Hauler 17 | . 2 . 4 4 . . . 1 . . . 6 . . . . . Recycler 6 | . . . . 2 2 . 1 . . . . 1 . . . . . Mechanic 1 | . . . 1 . . . . . . . . . . . . . . Operator 4 | . . . . 2 . . . 1 . . . 1 . . . . . Watcher 6 | . 1 . . . . . . 1 2 . 1 . . . . . 1 Swarmer 34 | . 9 . 8 8 2 . 4 . . . 3 . . . . . . Grunt 58 | . 12 1 6 8 1 . 9 10 . . 3 2 . . . . 6 Brawler 1 | . . . . . 1 . . . . . . . . . . . . Duelist 1 | . . . . . . . . 1 . . . . . . . . . Protector 1 | . . . . . . . 1 . . . . . . . . . . Sentry 23 | . . . 4 9 1 . 2 2 . 2 1 . 1 . . 1 . Specialist 3 | . . . . . . . . . . . 2 . . . . . 1 Hunter 4 | . . . . . 1 . . . . . . 2 . . . 1 . Programmer 12 | . . . . . 3 . 1 . . . . 5 1 . . . 2 Heavy 1 | . . . . . . . . . . . 1 . . . . . . Behemoth 1 | . . . . . . . . 1 . . . . . . . . . Cetus Guard 2 | . . . . . . . . . 2 . . . . . . . . Lightning 1 | . . . . . . . . . . . 1 . . . . . . Samaritan 1 | . . . . . . . . . . . . . . 1 . . . Thug 1 | . . . . . . . . . 1 . . . . . . . . Savage 1 | . . . . . . . . 1 . . . . . . . . . Butcher 1 | . . . . . . . . . . . 1 . . . . . . Best Kill Streak 6 | 1 4 1 5 5 4 . 5 3 2 2 3 6 1 . . 1 4 Combat Bots Only 5 | . 4 1 4 5 3 . 4 3 1 2 3 2 1 . . 1 4 Max Kills in Single Turn 3 | 1 2 1 3 3 1 . 2 2 1 1 3 1 1 1 . 1 1 Gunslinging 1 | . 1 . . . . . . . . . . . . . . . . Exploded 3 | . . . 3 3 . . 2 . . . 3 . . . . . . Melee 1 | . . . 1 . . . . . . . . . . . . . . Uniques/NPCs Destroyed 1 | . . . . . . . . . 1 . . . . . . . . A7 (-6/Cetus) Combat | -11 -10 -10 -9 -9 -9 -9 -6 -6 -6 -6 -6 -5 -5 -5 -5 -4 -4 -------- Run | Yrd Mat Min Mat Sto Rec Scr Fac Ext Cet Arc Hub Fac Upp Upp Zhi Pro Fac Hostile Shots Fired 1220 | . 108 18 85 119 55 . 195 69 10 . 87 97 4 . . 52 321 Missed 409 | . 23 10 29 43 8 . 69 17 5 . 29 26 1 . . 20 129 Hits 811 | . 85 8 56 76 47 . 126 52 5 . 58 71 3 . . 32 192 Projectile 811 | . 85 8 56 76 47 . 126 52 5 . 58 71 3 . . 32 192 AOE 1 | . . . . . . . . . . . 1 . . . . . . Critical Strikes 42 | . 1 . 1 4 1 . 3 1 . . 9 8 . . . . 14 Actively Blocked 3 | . . . . . . . . . . . . . . . . . 3 Part Disruptions 3 | . . . . . . . . . . 1 . . . . . . 2 Damage Taken 11594 | . 850 97 678 1197 584 . 1851 643 201 91 1450 1013 79 . . 422 2438 Core 1270 | . 140 . 81 89 79 . 250 79 29 . 63 108 28 . . 51 273 Absorbed by Shields 130 | . . . . . . . 25 68 37 . . . . . . . . Redirected to Shielding 189 | . 15 . 15 . . . . . . . . . . . . . 159 Ignored by Resistances 710 | . . . . . . . . . . . . 334 . . . . 376 Regen/Repaired (Parts) 760 | . . . . . . . . . . . 105 389 23 . . 22 221 Core Remaining (%) 62 | 100 . 44 . . . 37 . . . . 50 . . . . 81 . Volleys Fired 593 | 1 70 7 61 79 21 . 69 63 22 4 35 67 10 6 . 28 50 Largest 2 | 2 2 2 2 2 2 . 2 2 2 2 2 2 2 2 . 2 2 Hottest 180 | 70 70 40 76 136 136 . 134 120 96 70 70 155 155 155 . 155 180 Shots Fired 1051 | 2 140 14 119 149 41 . 98 103 39 8 69 117 19 11 . 44 78 Gun 553 | 2 140 14 116 97 . . 15 21 7 8 67 66 . . . . . Cannon 476 | . . . . 44 41 . 77 82 31 . . 51 19 11 . 44 76 Launcher 20 | . . . 3 8 . . 6 . . . 1 . . . . . 2 Special 2 | . . . . . . . . . 1 . 1 . . . . . . Kinetic 604 | 1 121 14 105 97 . . 9 78 38 8 67 66 . . . . . Thermal 426 | 1 19 . 11 44 41 . 83 25 . . 1 51 19 11 . 44 76 Explosive 19 | . . . 3 8 . . 6 . . . 1 . . . . . 1 Electromagnetic 1 | . . . . . . . . . . . . . . . . . 1 Robot Hit Streak 41 | 1 12 4 13 12 15 . 35 20 41 4 10 17 7 . . 8 29 Robot Miss Streak 5 | 1 5 3 2 2 3 . 2 2 . 1 2 2 . . . 1 3 Penetration Max 2 | . . . . . . . . 2 1 . 1 1 . . . . . Secondary Targets 11 | . 3 . . 4 . . . . . . 3 1 . . . . . Max Gunslinging Chain 1 | . 1 . . 1 . . . . . . 1 1 . . . . . Shots Hit Robots 704 | 1 94 8 80 100 28 . 78 77 37 6 45 85 5 . . 16 44 Core Hits 343 | 1 39 4 45 40 10 . 46 37 15 4 25 30 4 . . 6 37 Critical Kills 22 | . . . . 1 1 . . 6 3 . 3 7 . . . . 1 Critical Parts Destroyed 28 | . . . 1 1 . . . 6 8 . 5 7 . . . . . Critical Strikes 60 | . 3 . 2 2 1 . . 17 12 . 8 14 . . . . 1 Burn 4 | . 3 . 1 . . . . . . . . . . . . . . Meltdown 4 | . . . . 1 1 . . . . . . 1 . . . . 1 Destroy 50 | . . . 1 1 . . . 15 12 . 8 13 . . . . . Blast 2 | . . . . . . . . 2 . . . . . . . . . Melee Attacks . | . . . . . . . . . . . . . . . . . . Impact . | . . . . . . . . . . . . . . . . . . Slashing . | . . . . . . . . . . . . . . . . . . Piercing . | . . . . . . . . . . . . . . . . . . Sneak Attacks . | . . . . . . . . . . . . . . . . . . Combat Hostiles . | . . . . . . . . . . . . . . . . . . Follow-up Attacks . | . . . . . . . . . . . . . . . . . . Damage Inflicted 18216 | 10 1216 133 1622 2018 708 . 2046 2105 980 160 1481 2706 156 16 . 474 2385 Guns 7461 | 10 1199 99 1269 1119 . . 211 481 209 160 1271 1433 . . . . . Cannons 8270 | . . . . 592 629 . 1407 1588 771 . . 1219 156 . . 474 1434 Explosions 2000 | . . . 271 274 . . 393 . . . 192 . . . . . 870 Melee . | . . . . . . . . . . . . . . . . . . Ramming 485 | . 17 34 82 33 79 . 35 36 . . 18 54 . 16 . . 81 Kinetic 8923 | 10 1040 99 1167 1119 . . 128 1516 980 160 1271 1433 . . . . . Thermal 6894 | . 159 . 102 592 629 . 1490 553 . . . 1219 156 . . 474 1520 Explosive 1769 | . . . 271 274 . . 393 . . . 192 . . . . . 639 Electromagnetic 145 | . . . . . . . . . . . . . . . . . 145 Impact . | . . . . . . . . . . . . . . . . . . Slashing . | . . . . . . . . . . . . . . . . . . Piercing . | . . . . . . . . . . . . . . . . . . Highest Corruption 57 | . . . . 4 5 . . . 7 7 57 8 8 18 18 18 5 Average Corruption 9 | . . . . 2 4 . . . 7 7 14 5 8 13 18 18 3 Corruption Purged . | . . . . . . . . . . . . . . . . . . Corruption Blocked . | . . . . . . . . . . . . . . . . . . Effects 214 | . . . . 18 27 . . . 4 3 28 12 27 30 9 53 3 Message Errors 53 | . . . . 3 9 . . . 1 . 5 4 6 9 4 11 1 Matter Fused 50 | . . . . 7 6 . . . 2 2 7 1 6 6 3 10 . Heat Flow Errors 24 | . . . . 2 3 . . . . . . 1 3 5 1 9 . Energy Discharges 23 | . . . . . 2 . . . . . 5 1 5 4 1 3 2 Parts Rejected 5 | . . . . 2 . . . . . . 2 . . . . 1 . Parts Fused 2 | . . . . . . . . . . . 2 . . . . . . Data Loss (minor) 26 | . . . . 2 5 . . . . 1 3 2 3 4 . 6 . Data Loss (major) 6 | . . . . 1 . . . . . . . . 2 . . 3 . Misfires 11 | . . . . . . . . . 1 . 1 1 2 2 . 4 . Alerts 6 | . . . . 1 1 . . . . . 1 1 . . . 2 . Misdirections 2 | . . . . . . . . . . . 2 . . . . . . Weapon Failures 6 | . . . . . 1 . . . . . . 1 . . . 4 . Overload Shots . | . . . . . . . . . . . . . . . . . . Overflow Damage 211 | . . . . 18 17 . . 29 . . . 55 . 13 . 21 58 Projectiles 172 | . . . . . 14 . . 29 . . . 55 . . . 21 53 Explosions 18 | . . . . 18 . . . . . . . . . . . . . Melee 21 | . . . . . 3 . . . . . . . . 13 . . 5 Knockbacks 18 | . . . . . 1 . . 9 7 . . 1 . . . . . Impact 3 | . . . . . 1 . . 1 . . . 1 . . . . . Kinetic 13 | . . . . . . . . 8 5 . . . . . . . . Secondary 2 | . . . . . . . . . 2 . . . . . . . . Self-Inflicted Damage 289 | . . . . 89 . . 55 . . . . . . . . . 145 Shots 6 | . . . . 2 . . 2 . . . . . . . . . 2 Rammed 48 | . 6 9 17 11 4 . 1 . . . . . . . . . . Targets Rammed 67 | . 7 9 19 11 5 . 5 3 . . 2 2 . 1 . . 3 Kicked 14 | . . . . . . . 3 3 . . 2 2 . 1 . . 3 Crushed 5 | . 1 . 2 . 1 . 1 . . . . . . . . . . Highest Temperature 443 | 9 198 2 81 313 212 . 24 42 . 63 132 443 228 243 245 251 54 Average Temperature 80 | 6 88 2 21 65 58 . 7 17 . 28 37 138 81 81 132 59 15 Received Heat Transfer 2642 | . 321 39 219 342 84 . 760 294 . . 99 81 9 . . . 394 Effects 13 | . . . . 2 . . . . . . . 11 . . . . . Shutdowns 2 | . . . . . . . . . . . . 2 . . . . . Energy Bleed 3 | . . . . 2 . . . . . . . 1 . . . . . Interference 7 | . . . . . . . . . . . . 7 . . . . . Short Circuit 1 | . . . . . . . . . . . . 1 . . . . . Siege Activations . | . . . . . . . . . . . . . . . . . . Martial Activations . | . . . . . . . . . . . . . . . . . . Shielding Activations . | . . . . . . . . . . . . . . . . . . Robots Disrupted 2 | . . . . . . . . . . . . . . . . . 2 Combat Hostiles 1 | . . . . . . . . . . . . . . . . . 1 Robots Corrupted 2 | . . . . . 1 . . . . . . . . 1 . . . Combat Hostiles . | . . . . . . . . . . . . . . . . . . Parts Fried 4 | . . . . . 2 . . . 1 . . . . 1 . . . Impact Corruptions 5 | . . . . . 1 . . . . . . . . 3 . . 1 Robots Melted 5 | . . . . 2 1 . . . . . . 1 . . . . 1 Combat Hostiles 3 | . . . . 1 1 . . . . . . . . . . . 1 Parts Melted 25 | . . . 1 4 1 . 3 . . . 1 8 2 . . . 5 Heat Transferred 10748 | . 703 . 296 999 1036 . 2508 779 . . . 1482 211 . . 696 2038 Parts Sabotaged . | . . . . . . . . . . . . . . . . . . Parts Stolen . | . . . . . . . . . . . . . . . . . . Parts Stripped . | . . . . . . . . . . . . . . . . . . Power Chain Reactions . | . . . . . . . . . . . . . . . . . . Alert | -11 -10 -10 -9 -9 -9 -9 -6 -6 -6 -6 -6 -5 -5 -5 -5 -4 -4 ------- Run | Yrd Mat Min Mat Sto Rec Scr Fac Ext Cet Arc Hub Fac Upp Upp Zhi Pro Fac Maximum Alert Level 3 | . 1 . 2 2 1 . 1 1 1 . 3 2 . . . . . Low Security (%) 56 | 100 69 100 24 5 51 . 87 94 91 100 11 . . . . . 100 Level 1 28 | . 30 . 59 8 48 . 12 5 8 . 30 90 . . . . . Level 2 13 | . . . 16 85 . . . . . . 29 9 . . . . . Level 3 1 | . . . . . . . . . . . 28 . . . . . . Level 4 . | . . . . . . . . . . . . . . . . . . Level 5 . | . . . . . . . . . . . . . . . . . . High Security . | . . . . . . . . . . . . . . . . . . Max Security . | . . . . . . . . . . . . . . . . . . Peak Influence 765 | 5 265 113 557 646 288 . 218 212 219 111 765 447 . . . . 152 Initial 348 | . . 67 . 96 195 . . 76 104 49 24 348 . . . . . Average 204 | . 143 29 276 480 202 . 95 71 150 82 464 319 . . . . 48 Influence Increases 8006 | 5 664 159 1184 1105 567 . 604 835 356 202 1186 513 50 . . 55 521 Destroy 0b10 Robot/C 3920 | . 420 100 640 580 280 . 320 420 160 80 480 180 40 . . 40 180 Destroy 0b10 Robot/NC 310 | 5 20 . 70 45 20 . 15 40 10 5 20 55 . . . . 5 Destroy Leader 792 | . 96 20 174 200 . . 60 44 . . 124 52 10 . . . 12 Allied During Kill 1262 | . . 27 163 86 78 . 10 223 170 85 420 . . . . . . Successful Hack 339 | . 38 12 47 26 25 . 26 47 9 . 5 82 . . . . 22 Select Force Hacks 270 | . 60 . 30 30 150 . . . . . . . . . . . . Disable Machine 360 | . 15 . 15 60 . . 45 15 . 30 60 . . . . . 120 Destroy Structure 438 | . . . 15 48 14 . 38 31 7 2 77 54 . . . . 152 Lose Combat Pursuer 315 | . 15 . 30 30 . . 90 15 . . . 90 . . . 15 30 Influence Decreases 7907 | 5 490 333 954 834 874 194 447 804 420 255 545 794 481 . . 55 422 Entered New Map 1553 | . . 107 . 134 306 194 . 81 84 75 47 364 161 . . . . Time Decay 4587 | 5 460 226 574 490 458 . 290 503 246 60 278 380 320 . . 55 242 Lost Part 380 | . 30 . . 30 30 . 100 30 10 . 20 50 . . . . 80 Lost Ally 937 | . . . 80 180 80 . 57 40 80 120 200 . . . . . 100 Purge Threat 450 | . . . 300 . . . . 150 . . . . . . . . . Squads Dispatched 38 | . 5 . 2 7 . . 4 2 . . 5 6 . . . . 7 Investigation 15 | . 4 . 2 1 . . . 1 . . . 2 . . . . 5 Extermination 7 | . . . . . . . 1 . . . 1 3 . . . . 2 Reinforcement 13 | . 1 . . 3 . . 3 1 . . 4 1 . . . . . Assault . | . . . . . . . . . . . . . . . . . . Garrison 3 | . . . . 3 . . . . . . . . . . . . . Intercept . | . . . . . . . . . . . . . . . . . . Searches Triggered . | . . . . . . . . . . . . . . . . . . Construction Impeded . | . . . . . . . . . . . . . . . . . . Haulers Reinforced 1 | . . . . . . . . . . . . 1 . . . . . Active Scanning Responses . | . . . . . . . . . . . . . . . . . . Cargo Convoy Interrupts 1 | . . . . . . . . . . . . . . . . . 1 Stealth | -11 -10 -10 -9 -9 -9 -9 -6 -6 -6 -6 -6 -5 -5 -5 -5 -4 -4 --------- Run | Yrd Mat Min Mat Sto Rec Scr Fac Ext Cet Arc Hub Fac Upp Upp Zhi Pro Fac Distress Signals 20 | . 4 . 1 5 . . 3 4 . . . 1 . . . . 2 Communications Jammed . | . . . . . . . . . . . . . . . . . . Distress Signals . | . . . . . . . . . . . . . . . . . . Times Spotted 287 | . 34 5 47 34 13 . 28 26 7 4 27 17 2 . . 4 39 Peak Tracking Total 17 | . 6 3 6 5 4 . 7 3 4 2 5 7 1 . . 2 17 Tactical Retreats 15 | . 1 . 2 2 . . 4 1 . . . 3 . . . 1 1 Traps | -11 -10 -10 -9 -9 -9 -9 -6 -6 -6 -6 -6 -5 -5 -5 -5 -4 -4 ------- Run | Yrd Mat Min Mat Sto Rec Scr Fac Ext Cet Arc Hub Fac Upp Upp Zhi Pro Fac Traps Triggered 12 | . 2 . . 2 . . 4 . . . . 1 . . . . 3 Indirectly . | . . . . . . . . . . . . . . . . . . Trap Hack Attempts . | . . . . . . . . . . . . . . . . . . Triggered . | . . . . . . . . . . . . . . . . . . Disarmed . | . . . . . . . . . . . . . . . . . . Reprogrammed . | . . . . . . . . . . . . . . . . . . Reused . | . . . . . . . . . . . . . . . . . . Traps Extracted . | . . . . . . . . . . . . . . . . . . Installed . | . . . . . . . . . . . . . . . . . . Triggered . | . . . . . . . . . . . . . . . . . . Machines | -11 -10 -10 -9 -9 -9 -9 -6 -6 -6 -6 -6 -5 -5 -5 -5 -4 -4 ---------- Run | Yrd Mat Min Mat Sto Rec Scr Fac Ext Cet Arc Hub Fac Upp Upp Zhi Pro Fac Machines Disabled 24 | . 1 . 1 4 . . 3 1 . 2 4 . . . . . 8 Max in Single Turn 5 | . 1 . . 1 . . 1 1 . . 1 . . . . . 5 Garrison Access 3 | . . . . 1 . . 1 . . . . . . . . . 1 Network Hub 2 | . . . . . . . . . . . 2 . . . . . . Machines Repaired . | . . . . . . . . . . . . . . . . . . Machines Dismantled 2 | . . . . . . . . 1 . . 1 . . . . . . Machines Sabotaged . | . . . . . . . . . . . . . . . . . . Overloaded Fab Kills . | . . . . . . . . . . . . . . . . . . Hacking | -11 -10 -10 -9 -9 -9 -9 -6 -6 -6 -6 -6 -5 -5 -5 -5 -4 -4 --------- Run | Yrd Mat Min Mat Sto Rec Scr Fac Ext Cet Arc Hub Fac Upp Upp Zhi Pro Fac Machines Accessed 90 | . 8 3 14 9 11 3 6 14 1 . 4 4 . . 4 . 9 Terminals 61 | . 6 2 12 7 6 . 3 14 1 . 4 2 . . . . 4 Fabricators 2 | . . . . . . . . . . . . 1 . . . . 1 Repair Stations . | . . . . . . . . . . . . . . . . . . Recycling Units 15 | . 2 . 1 1 5 . 2 . . . . 1 . . . . 3 Scanalyzers 1 | . . . 1 . . . . . . . . . . . . . . Garrison Access 3 | . . . . 1 . . 1 . . . . . . . . . 1 Total Hacks 265 | . 23 7 45 21 27 21 13 32 1 . 11 22 . . 17 . 25 Successful 148 | . 13 4 25 9 17 21 4 15 1 . 3 11 . . 17 . 8 Failed 116 | . 10 3 19 12 10 . 9 17 . . 8 11 . . . . 17 Catastrophic 29 | . . 1 1 4 . . 4 3 . . 3 6 . . . . 7 Database Lockouts 1 | . . . 1 . . . . . . . . . . . . . . Manual 139 | . 18 7 25 15 20 . 3 9 1 . 8 19 . . . . 14 Terminals 173 | . 18 6 39 16 18 . 9 32 1 . 11 11 . . . . 12 Fabricators 5 | . . . . . . . . . . . . 3 . . . . 2 Repair Stations . | . . . . . . . . . . . . . . . . . . Recycling Units 38 | . 5 . 2 1 9 . 3 . . . . 8 . . . . 10 Scanalyzers 4 | . . . 4 . . . . . . . . . . . . . . Garrison Access 6 | . . . . 4 . . 1 . . . . . . . . . 1 Terminal Hacks 77 | . 3 4 12 2 3 21 1 11 1 . 1 . . . 17 . 1 Record 25 | . . . . . . 20 . . . . . . . . 5 . . Part Schematic 6 | . . . 1 . 1 . . . . . . . . . 4 . . Robot Analysis 9 | . 1 3 1 . . . . . . . . . . . 4 . . Prototype ID Bank 12 | . . . 4 1 2 . . 1 . . . . . . 4 . . Open Door 11 | . . 1 . 1 . . . 8 1 . . . . . . . . Branch Access Points 2 | . 1 . . . . . . . . . . . . . . . 1 Emergency Access Points 1 | . . . . . . . 1 . . . . . . . . . . Terminal Index 1 | . 1 . . . . . . . . . . . . . . . . Scanalyzer Index 1 | . . . 1 . . . . . . . . . . . . . . Alert Level 1 | . . . . . . . . 1 . . . . . . . . . Unreport Threat 3 | . . . 2 . . . . 1 . . . . . . . . . Hauler Manifests 2 | . . . 1 . . . . . . . 1 . . . . . . Registered Components 1 | . . . 1 . . . . . . . . . . . . . . Zone Layout 1 | . . . 1 . . . . . . . . . . . . . . Proto ID Catalog 1 | . . . . . . 1 . . . . . . . . . . . Fabricator Hacks 1 | . . . . . . . . . . . . 1 . . . . . Network Status 1 | . . . . . . . . . . . . 1 . . . . . Repair Station Hacks . | . . . . . . . . . . . . . . . . . . Recycling Unit Hacks 8 | . 2 . . . 3 . 1 . . . . 1 . . . . 1 Retrieve Components 8 | . 2 . . . 3 . 1 . . . . 1 . . . . 1 Scanalyzer 3 | . . . 3 . . . . . . . . . . . . . . Retrieve Study 3 | . . . 3 . . . . . . . . . . . . . . Garrison Access Hacks 3 | . . . . 1 . . 1 . . . . . . . . . 1 Seal Access 3 | . . . . 1 . . 1 . . . . . . . . . 1 Unauthorized Hacks 56 | . 8 . 10 6 11 . 1 4 . . 2 9 . . . . 5 Terminals 38 | . 6 . 9 5 6 . 1 4 . . 2 4 . . . . 1 Track 5 | . . . 1 . . . 1 1 . . 1 1 . . . . . Assimilate 1 | . . . . . . . . . . . . 1 . . . . . Botnet 10 | . 1 . 2 2 1 . . 2 . . 1 1 . . . . . Disrupt 1 | . . . . . . . . 1 . . . . . . . . . Operators 2 | . . . . 1 . . . . . . . . . . . . 1 Skim 19 | . 5 . 6 2 5 . . . . . . 1 . . . . . Fabricators 1 | . . . . . . . . . . . . 1 . . . . . Haulers 1 | . . . . . . . . . . . . 1 . . . . . Repair Stations . | . . . . . . . . . . . . . . . . . . Recycling Units 17 | . 2 . 1 1 5 . . . . . . 4 . . . . 4 Monitor 1 | . . . . . . . . . . . . 1 . . . . . Reject 1 | . . . . . . . . . . . . 1 . . . . . Recyclers 2 | . . . . . . . . . . . . 1 . . . . 1 Mask 1 | . . . . . . . . . . . . 1 . . . . . Tunnel 9 | . 2 . 1 1 5 . . . . . . . . . . . . Fedlink 2 | . . . . . . . . . . . . . . . . . 2 Scrapoids 1 | . . . . . . . . . . . . . . . . . 1 Scanalyzers . | . . . . . . . . . . . . . . . . . . Garrison Access . | . . . . . . . . . . . . . . . . . . Data Cores Recovered 3 | . . . . . . . . 2 . . . 1 . . . . . Used 1 | . . . . . . . . . . . . 1 . . . . . Hacking Detections 57 | . 6 2 12 7 7 . 5 7 . . 4 2 . . . . 5 Full Trace Events 6 | . 1 . . 1 1 . . 1 . . . 2 . . . . . Feedback Events 1 | . . . . 1 . . . . . . . . . . . . . Corruption 1 | . . . . 1 . . . . . . . . . . . . . Feedback Blocked . | . . . . . . . . . . . . . . . . . . Robot Schematics Acquired . | . . . . . . . . . . . . . . . . . . Robots Built . | . . . . . . . . . . . . . . . . . . Authchips . | . . . . . . . . . . . . . . . . . . Time . | . . . . . . . . . . . . . . . . . . Total Robot Build Rating . | . . . . . . . . . . . . . . . . . . Part Schematics Acquired 6 | . . . 1 . 1 . . . . . . . . . 4 . . Parts Built . | . . . . . . . . . . . . . . . . . . Authchips . | . . . . . . . . . . . . . . . . . . Time . | . . . . . . . . . . . . . . . . . . Total Part Build Rating . | . . . . . . . . . . . . . . . . . . Part Studies Acquired 3 | . . . 3 . . . . . . . . . . . . . . Parts Repaired . | . . . . . . . . . . . . . . . . . . Time . | . . . . . . . . . . . . . . . . . . Parts Recycled . | . . . . . . . . . . . . . . . . . . Recycled Matter . | . . . . . . . . . . . . . . . . . . Retrieved Matter . | . . . . . . . . . . . . . . . . . . Retrieved Components 31 | . 10 . . . 14 . 7 . . . . . . . . . . Parts Scanalyzed . | . . . . . . . . . . . . . . . . . . Part Schematics Acquired . | . . . . . . . . . . . . . . . . . . Parts Damaged . | . . . . . . . . . . . . . . . . . . Bothacking | -11 -10 -10 -9 -9 -9 -9 -6 -6 -6 -6 -6 -5 -5 -5 -5 -4 -4 ------------ Run | Yrd Mat Min Mat Sto Rec Scr Fac Ext Cet Arc Hub Fac Upp Upp Zhi Pro Fac Used RIF Installer . | . . . . . . . . . . . . . . . . . . Robots Hacked . | . . . . . . . . . . . . . . . . . . Non-combat . | . . . . . . . . . . . . . . . . . . Combat . | . . . . . . . . . . . . . . . . . . Robot Hacks Applied . | . . . . . . . . . . . . . . . . . . Relay Couplers Released . | . . . . . . . . . . . . . . . . . . Fabnet Peak Effective % . | . . . . . . . . . . . . . . . . . . Robots Rewired 26 | . . . . . 17 . . 9 . . . . . . . . . Allies Hacked 1 | . . . . . . . . . . . . . . . . . 1 Hacks Repelled . | . . . . . . . . . . . . . . . . . . Allies | -11 -10 -10 -9 -9 -9 -9 -6 -6 -6 -6 -6 -5 -5 -5 -5 -4 -4 -------- Run | Yrd Mat Min Mat Sto Rec Scr Fac Ext Cet Arc Hub Fac Upp Upp Zhi Pro Fac Total Allies 62 | . . 5 . 10 17 . . 20 5 . . . . . . . 5 Largest Group 20 | . . 5 5 10 13 12 12 18 20 16 11 . . . . . 5 Highest-Rated Group 1043 | . . 78 78 88 142 131 131 658 1043 781 644 . . . . . 238 Highest-Rated Ally 159 | . . 31 31 16 34 27 27 159 159 96 96 . . . . . 50 Total Orders 4 | . . . . . . 2 . . . . 1 . . . . . 1 STAY 2 | . . . . . . 1 . . . . 1 . . . . . . FOLLOW 1 | . . . . . . 1 . . . . . . . . . . . EXPLORE 1 | . . . . . . . . . . . . . . . . . 1 Ally Attacks 446 | . . 9 81 48 16 . 13 72 49 38 111 . . . . . 9 Total Damage 8449 | . . 114 833 421 216 . 102 1439 1215 1086 2758 . . . . . 265 Kills 70 | . . 4 20 5 6 . . 11 6 3 15 . . . . . . Allies Corrupted 5 | . . . . . . . . . . . 5 . . . . . . Allies Melted . | . . . . . . . . . . . . . . . . . . Intel | -11 -10 -10 -9 -9 -9 -9 -6 -6 -6 -6 -6 -5 -5 -5 -5 -4 -4 ------- Run | Yrd Mat Min Mat Sto Rec Scr Fac Ext Cet Arc Hub Fac Upp Upp Zhi Pro Fac Active Infowar (turns) 7981 | 38 93 . 104 . . . 261 1385 534 124 618 878 806 771 235 1101 1033 Optics 7603 | . . . . . . . 118 1385 534 124 618 878 806 771 235 1101 1033 Sensors 4111 | . . . . . . . . . . . . 498 762 750 234 1002 865 Structural 2077 | . . . . . . . 143 . . . . . . . 83 990 861 Seismic 235 | 38 93 . 104 . . . . . . . . . . . . . . T.N.C. 785 | . . . . . . . . . . . . . . . . . 785 Robot Analysis Total 9 | . 1 3 1 . . . . . . . . . . . 4 . . Derelict Logs Recovered 4 | . . 2 . . . . . . . . . . . 1 . 1 . Drone Launches 1 | . . . . . . . . . . . . . . . . . 1 Drone Recoveries 1 | . . . . . . . . . . . . . . . . . 1 Exploration | -11 -10 -10 -9 -9 -9 -9 -6 -6 -6 -6 -6 -5 -5 -5 -5 -4 -4 ------------- Run | Yrd Mat Min Mat Sto Rec Scr Fac Ext Cet Arc Hub Fac Upp Upp Zhi Pro Fac Turns Passed 21486 | 86 1387 954 2126 1287 1156 5990 999 1385 534 124 618 894 806 771 235 1101 1033 Spaces Moved 10882 | 46 653 557 1238 693 506 1894 502 819 203 41 301 540 569 644 179 778 719 Core 681 | 3 . . . . . 678 . . . . . . . . . . . Treads 5115 | 43 653 557 1238 693 506 1216 209 . . . . . . . . . . Legs 4988 | . . . . . . . 195 819 203 41 301 540 569 644 179 778 719 Wheels 98 | . . . . . . . 98 . . . . . . . . . . Hover . | . . . . . . . . . . . . . . . . . . Flight . | . . . . . . . . . . . . . . . . . . Fastest Speed 50 | 50 160 160 145 145 145 50 110 108 120 190 110 112 115 115 112 112 108 Average Speed 163 | 152 161 160 149 145 146 310 145 112 132 190 147 113 115 115 114 112 108 Slowest Speed 700 | 160 240 160 160 225 225 700 220 188 190 190 190 115 115 116 116 112 115 Overloaded Moves . | . . . . . . . . . . . . . . . . . . Propulsion Burnouts . | . . . . . . . . . . . . . . . . . . Robots Hopped . | . . . . . . . . . . . . . . . . . . Potential Cave-ins 5 | . . . . 5 . . . . . . . . . . . . . Cave-ins Triggered 1 | . . . . 1 . . . . . . . . . . . . . Teleports 1 | . . . . . . . . . . . . . . . . . 1 Exploration Rate (%) 66 | 4 93 95 95 88 98 87 15 91 73 76 41 19 64 84 61 80 36 Regions Visited 17 Branch Regions 12 Pre-discovered Areas 25 | . 5 . 4 1 5 5 . . . . . . . 1 3 . 1 Known Exits Taken 12 | . 1 . 1 1 1 1 1 . . . 1 1 1 1 1 1 . Unknown Exits Taken 5 | 1 . 1 . . . . . 1 1 1 . . . . . . . Scrap Searched 23 | . . 2 . . . 13 . . . . . . 1 3 . 4 . Spaces Dug 101 | . . . . 11 . . 21 . . . 20 11 6 4 . 11 17 Terrain Destroyed 345 | . . . 13 63 . . 39 22 6 1 42 31 12 10 . 24 82 Melee . | . . . . . . . . . . . . . . . . . . Projectile 161 | . . . . . . . 1 22 6 1 26 31 12 10 . 24 28 AOE 183 | . . . 13 63 . . 38 . . . 15 . . . . . 54 Terrain Rammed . | . . . . . . . . . . . . . . . . . . Walls Destroyed . | . . . . . . . . . . . . . . . . . . Machines Disabled . | . . . . . . . . . . . . . . . . . . Actions | -11 -10 -10 -9 -9 -9 -9 -6 -6 -6 -6 -6 -5 -5 -5 -5 -4 -4 --------- Run | Yrd Mat Min Mat Sto Rec Scr Fac Ext Cet Arc Hub Fac Upp Upp Zhi Pro Fac Total 13471 | 56 846 600 1397 818 878 2034 667 1167 436 79 388 700 700 660 207 956 882 Wait 1055 | . 77 25 21 10 129 19 23 180 168 34 1 63 115 2 . 136 52 Move 10865 | 45 652 556 1237 692 505 1893 501 818 202 40 300 539 568 643 178 777 719 Hop . | . . . . . . . . . . . . . . . . . . Pick Up 182 | 2 19 . 19 6 6 60 20 11 13 . 5 4 . 2 6 . 9 Fast Attach 51 | 7 1 . 2 5 . 7 11 1 2 . 4 5 . . 4 1 1 Attach 49 | . 4 1 2 4 3 3 15 3 2 . 2 4 . . 1 . 5 Detach 7 | . 1 . . . . 1 . . 1 . 1 2 . . 1 . . Swap 175 | 1 6 2 13 6 1 1 14 17 11 1 23 12 7 5 9 14 32 Drop 161 | . 9 . 23 5 . 50 9 18 15 . 10 2 . 1 8 . 11 Fire 593 | 1 70 7 61 79 21 . 69 63 22 4 35 67 10 6 . 28 50 Melee . | . . . . . . . . . . . . . . . . . . Ram . | . . . . . . . . . . . . . . . . . . Kick 14 | . . . . . . . 3 3 . . 2 2 . 1 . . 3 Crush 53 | . 7 9 19 11 5 . 2 . . . . . . . . . . Escape Stasis . | . . . . . . . . . . . . . . . . . . Rewire 253 | . . . . . 208 . . 45 . . . . . . . . . Trap . | . . . . . . . . . . . . . . . . . . Miscellaneous 13 | . . . . . . . . 8 . . 5 . . . . . . Route ------- -11/Scrapyard -10/Materials (discovered 6 exits: *Mat x3 / *Min x2 / Sub) -10/Mines (discovered 3 exits: *Mat x2 / *Sub) -9/Materials (discovered 6 exits: *Mat x3 / *Min x2 / *Sto) -9/Storage (discovered 2 exits: *Mat / *Rec) -9/Recycling (discovered 2 exits: [*Fac] / *Scr) -9/Scraptown (discovered 2 exits: *Fac x2) -6/Factory (discovered 5 exits: *Fac x3 / Low / *Ext) -6/Extension (discovered 2 exits: *Fac / *Cet) -6/Cetus (discovered 2 exits: *Fac / [*Arc]) -6/Archives (discovered 2 exits: *Hub x2) -6/Hub_04(d) (discovered 3 exits: *Fac x3) -5/Factory (discovered 2 exits: *Upp x2) -5/Upper Caves -5/Upper Caves -5/Zhirov -4/Proximity Caves -4/Factory (discovered 5 exits: *Res x3 / Upp x2) History --------- Turn | Location | Event 18 | -11/Scrapyard | Discovered new exit (range 16) 87 | -11/Scrapyard | Entered Materials 315 | -10/Materials | Build established: Mutant 367 | -10/Materials | Discovered new exit (range 11) 417 | -10/Materials | Discovered new exit (range 8) 833 | -10/Materials | Discovered new exit (range 16) 877 | -10/Materials | Core integrity fell below 50% 923 | -10/Materials | Identified exit to Mines 932 | -10/Materials | Discovered new exit (range 8) 1292 | -10/Materials | Learned Storage stockpile data 1331 | -10/Materials | Discovered new exit (range 8) 1333 | -10/Materials | Learned location of 2 exits from Subcaves 1366 | -10/Materials | Learned location of Mines (-10) 1390 | -10/Materials | Learned 2 Mines zone layouts 1409 | -10/Materials | Learned location of 2 exits from Subcaves 1417 | -10/Materials | Identified exit to Subcaves 1474 | -10/Materials | Entered Mines 1552 | -10/Mines | Assisted by bots powering up and referring to "LRC-V3" 1574 | -10/Mines | Discovered new exit (range 9) 1667 | -10/Mines | Learned Materials non-interactive machine intel 1705 | -10/Mines | Discovered new exit (range 9) 2124 | -10/Mines | Discovered exit to Subcaves (range 9) 2280 | -10/Mines | Found the Drone Emporium 2298 | -10/Mines | Found Prototype Device 2298 | -10/Mines | Identified Sensor Drone Bay 2428 | -10/Mines | Entered Materials 2428 | -9/Materials | Accompanied by 5 allies 2428 | -9/Materials | Evolved 2 slots: Propulsion x1, Utility x1 2429 | -9/Materials | Identified exit to Storage 2430 | -9/Materials | Loaded intel: 44 non-interactive machine locations 2433 | -9/Materials | Led the pair of lost Derelicts to an unsafe place 2676 | -9/Materials | Discovered new exit (range 13) 3174 | -9/Materials | Learned location of 1 exit from Storage 3218 | -9/Materials | Learned Storage stockpile data 3280 | -9/Materials | Learned 2 Storage zone layouts 3294 | -9/Materials | Learned location of Zion (-6) 3309 | -9/Materials | Identified exit to Mines 3498 | -9/Materials | Discovered new exit (range 8) 3945 | -9/Materials | Central database locked down 4002 | -9/Materials | Discovered new exit (range 5) 4283 | -9/Materials | Discovered new exit (range 16) 4554 | -9/Materials | Entered Storage 4555 | -9/Storage | Identified exit to Materials 4555 | -9/Storage | Identified exit to Recycling 4689 | -9/Storage | Garrison activated, responded to threat 5193 | -9/Storage | Assisted by bots powering up and referring to "LRC-V3" 5497 | -9/Storage | Build established: Commander-Mutant 5537 | -9/Storage | Used back door to open Recycling access 5786 | -9/Storage | Crushed by falling debris 5826 | -9/Storage | Lost 7 allies 5841 | -9/Storage | Entered Recycling 6602 | -9/Recycling | Discovered new exit (range 16) 6643 | -9/Recycling | P-60 Hacker assimilated allied Mercenary 2j 6655 | -9/Recycling | Core integrity fell below 50% 6663 | -9/Recycling | Learned 4 Materials zone layouts 6682 | -9/Recycling | Lost 4 allies 6685 | -9/Recycling | Lost 3 parts (1n2u) 6718 | -9/Recycling | Learned Materials trap positions 6763 | -9/Recycling | Learned 4 Materials zone layouts 6797 | -9/Recycling | Identified exit to Scraptown 6821 | -9/Recycling | Learned Storage stockpile data 6937 | -9/Recycling | Scanned before Scraplab entrance 6964 | -9/Recycling | Entered Scraplab 6997 | -9/Recycling | Entered Scraptown 6997 | -9/Scraptown | Accompanied by 12 allies 6997 | -9/Scraptown | System corruption cleaned by C-Scrubber 7251 | -9/Scraptown | Visited UFD Registry 7251 | -9/Scraptown | Registered with UFD as "Gravfunk" 7273 | -9/Scraptown | Visited IN-MT5's Study 7315 | -9/Scraptown | Visited Assassins FH 7332 | -9/Scraptown | Visited Cyclists 7343 | -9/Scraptown | Entered Cyclist Reading Room 7369 | -9/Scraptown | Visited The Evicted 7391 | -9/Scraptown | Visited Bundlers 7513 | -9/Scraptown | Visited Red Mages 7569 | -9/Scraptown | Visited CPS Storage 7834 | -9/Scraptown | Discovered new exit (range 11) 8092 | -9/Scraptown | Visited Science Guys 8144 | -9/Scraptown | Visited Science Testing Area 8274 | -9/Scraptown | Visited Curators Association 8323 | -9/Scraptown | Visited Scrap Suit Storage 8343 | -9/Scraptown | Visited DA-N13 Charitable Foundation 8349 | -9/Scraptown | Found DCF Scrap (30 items) 8377 | -9/Scraptown | Visited LU-1G1's Boring Crew 8431 | -9/Scraptown | Visited A0-MCA Data Center 8450 | -9/Scraptown | Given a B+ rating by A0-MCA 8458 | -9/Scraptown | Found A0-MCA's Component Scanner 8493 | -9/Scraptown | Visited Cartography Club 8537 | -9/Scraptown | Found Surveybot 17 Chip 8552 | -9/Scraptown | Found Deep Structural Scanner 8558 | -9/Scraptown | Learned location of Mines (-8) 8558 | -9/Scraptown | Learned location of Recycling (-9) 8558 | -9/Scraptown | Learned location of Cetus (-6) 8558 | -9/Scraptown | Learned 8 Materials zone layouts 8558 | -9/Scraptown | Learned 16 Factory zone layouts 8558 | -9/Scraptown | Learned 12 Research zone layouts 8558 | -9/Scraptown | Learned 4 Access zone layouts 8558 | -9/Scraptown | Learned 8 Access zone layouts 8558 | -9/Scraptown | Learned 8 Lower Caves zone layouts 8558 | -9/Scraptown | Learned 4 Hub_04(d) zone layouts 8558 | -9/Scraptown | Learned location of 2 exits from Factory 8558 | -9/Scraptown | Learned location of 2 exits from Research 8558 | -9/Scraptown | Identified exit to Factory 12893 | -9/Scraptown | Met Optimus 12893 | -9/Scraptown | Accepted into 0bPrime 12987 | -9/Scraptown | Entered Factory 12987 | -6/Factory | Accompanied by 12 allies 12987 | -6/Factory | Evolved 6 slots: Power x1, Propulsion x2, Utility x3 12988 | -6/Factory | Identified exit to Factory 12989 | -6/Factory | Identified exit to Extension 12990 | -6/Factory | Identified exit to Lower Caves 13305 | -6/Factory | Lost 5 allies 13395 | -6/Factory | Lost 5 parts (1n3u1w) 13401 | -6/Factory | Lost 5 allies 13632 | -6/Factory | Build established: Mutant 13678 | -6/Factory | Lost 6 parts (5n1u) 13977 | -6/Factory | Build established: Scavenger-Mutant 13986 | -6/Factory | Entered Extension 14251 | -6/Extension | Lost 3 parts (1p1u1w) 14380 | -6/Extension | Spotted B-75 Beast 14398 | -6/Extension | Rescued a captive Derelict 14525 | -6/Extension | Rescued a captive Derelict 14538 | -6/Extension | Rescued A7 14692 | -6/Extension | Destroyed B-75 Beast 14700 | -6/Extension | Spotted B-75 Beast 14715 | -6/Extension | Allies destroyed B-75 Beast 14829 | -6/Extension | Rescued a captive Derelict 14830 | -6/Extension | Rescued a captive Derelict 14925 | -6/Extension | Rescued a captive Derelict 14940 | -6/Extension | Rescued a captive Derelict 14941 | -6/Extension | Rescued a captive Derelict 14957 | -6/Extension | Rescued a captive Derelict 15010 | -6/Extension | Rescued a captive Derelict 15158 | -6/Extension | Rescued a captive Derelict 15271 | -6/Extension | Discovered exit to Factory (range 10) 15272 | -6/Extension | Discovered new exit (range 6) 15371 | -6/Extension | Entered Cetus 15371 | -6/Cetus | Accompanied by 18 allies (A7) 15376 | -6/Cetus | Acquired a Cetus Manufacturing Module code from A7 15385 | -6/Cetus | Spotted Cetus Guard 15387 | -6/Cetus | Spotted Cetus Guard 15394 | -6/Cetus | Spotted Cetus Guard 15400 | -6/Cetus | Spotted Cetus Guard 15402 | -6/Cetus | Destroyed Cetus Guard 15411 | -6/Cetus | Allies destroyed Cetus Guard 15420 | -6/Cetus | Allies destroyed Cetus Guard 15426 | -6/Cetus | Allies destroyed Cetus Guard 15456 | -6/Cetus | Lost 3 allies 15490 | -6/Cetus | Started Cetus Manufacturing Module 15499 | -6/Cetus | Escorted A7 to Cetus Mainframe 15504 | -6/Cetus | Build established: Commander-Mutant 15515 | -6/Cetus | Manufactured an Enhanced Grunt 15540 | -6/Cetus | Manufactured an Enhanced Grunt 15565 | -6/Cetus | Manufactured an Enhanced Grunt 15590 | -6/Cetus | Manufactured an Enhanced Grunt 15615 | -6/Cetus | Manufactured an Enhanced Grunt 15629 | -6/Cetus | Discovered new exit (range 21) 15656 | -6/Cetus | Spotted Cetus Guard 15657 | -6/Cetus | Spotted Cetus Guard 15661 | -6/Cetus | Spotted Cetus Guard 15668 | -6/Cetus | Attached CPS modules to A7. 15677 | -6/Cetus | Destroyed Cetus Guard 15684 | -6/Cetus | Allies destroyed Cetus Guard 15685 | -6/Cetus | Allies destroyed Cetus Guard 15686 | -6/Cetus | Discovered exit to Factory (range 22) 15705 | -6/Cetus | Murdered A7 15708 | -6/Cetus | Extracted ID and sensor layout for unrecognized location from A7's data core 15715 | -6/Cetus | Met Revision 17 15760 | -6/Cetus | Found Prototype Protection 15905 | -6/Cetus | Entered Archives 15905 | -6/Archives | Accompanied by 17 allies 15946 | -6/Archives | Discovered new exit (range 21) 15953 | -6/Archives | Discovered new exit (range 20) 15979 | -6/Archives | Lost 6 allies 16029 | -6/Archives | Entered Hub_04(d) 16029 | -6/Hub_04(d) | Accompanied by 11 allies 16221 | -6/Hub_04(d) | Discovered exit to Factory (range 5) 16320 | -6/Hub_04(d) | Network Hub disabled 16335 | -6/Hub_04(d) | Spotted Lightning 16336 | -6/Hub_04(d) | Spotted Lightning 16338 | -6/Hub_04(d) | Spotted Lightning 16357 | -6/Hub_04(d) | Destroyed Lightning 16367 | -6/Hub_04(d) | Allies destroyed Lightning 16377 | -6/Hub_04(d) | Allies destroyed Lightning 16383 | -6/Hub_04(d) | System corruption reached 10% 16404 | -6/Hub_04(d) | Found Prototype Device 16404 | -6/Hub_04(d) | Identified Exp. EM Shield 16412 | -6/Hub_04(d) | Found Prototype Processor 16412 | -6/Hub_04(d) | Identified Exp. Targeting Computer 16415 | -6/Hub_04(d) | Lost 9 allies 16431 | -6/Hub_04(d) | Identified Med. Regenerative Plating 16447 | -6/Hub_04(d) | Found Exp. Targeting Computer 16479 | -6/Hub_04(d) | Discovered exit to Factory (range 10) 16568 | -6/Hub_04(d) | Discovered exit to Factory (range 11) 16624 | -6/Hub_04(d) | Spotted Lightning 16627 | -6/Hub_04(d) | Spotted Lightning 16628 | -6/Hub_04(d) | Build established: Scavenger-Mutant 16628 | -6/Hub_04(d) | Spotted Lightning 16636 | -6/Hub_04(d) | Network Hub disabled 16637 | -6/Hub_04(d) | System corruption reached 30% 16647 | -6/Hub_04(d) | Entered Factory 16647 | -5/Factory | Evolved 2 slots: Utility x2 16648 | -5/Factory | Identified exit to Upper Caves 16943 | -5/Factory | Build established: Scavenger-Skirmisher 17244 | -5/Factory | Lost 3 parts (1u2w) 17503 | -5/Factory | Build established: Scavenger-Mutant 17541 | -5/Factory | Entered Upper Caves 17742 | -5/Upper Caves | Spotted B-75 Beast 17841 | -5/Upper Caves | Build established: Scavenger-Skirmisher 18022 | -5/Upper Caves | Attracted the attention of an 0b10 checkpoint 18332 | -5/Upper Caves | Discovered new exit (range 9) 18340 | -5/Upper Caves | Identified exit to Upper Caves 18347 | -5/Upper Caves | Entered another Upper Caves area 18730 | -5/Upper Caves | System corruption reached 10% 18805 | -5/Upper Caves | Discovered new exit (range 9) 18814 | -5/Upper Caves | Identified exit to Zhirov 18836 | -5/Upper Caves | Learned location of Armory (-3) 19118 | -5/Upper Caves | Entered Zhirov 19118 | -5/Zhirov | Discovered new exit (range 3) 19140 | -5/Zhirov | Met Zhirov 19173 | -5/Zhirov | Zhirov requested help retrieving the SGEMP Prototype 19192 | -5/Zhirov | Found Alien Artifact 19192 | -5/Zhirov | Identified Integrated Dissipator 19192 | -5/Zhirov | Installed Integrated Dissipator, increased core heat dissipation (+20) 19210 | -5/Zhirov | Found Alien Artifact 19349 | -5/Zhirov | Identified exit to Proximity Caves 19353 | -5/Zhirov | Entered Proximity Caves 19741 | -4/Proximity Caves | Attracted the attention of an 0b10 checkpoint 19918 | -4/Proximity Caves | Learned Research emergency access door positions 20352 | -4/Proximity Caves | Discovered new exit (range 23) 20375 | -4/Proximity Caves | Identified exit to Factory 20454 | -4/Proximity Caves | Entered Factory 20454 | -4/Factory | Evolved 2 slots: Propulsion x1, Utility x1 20455 | -4/Factory | Identified exit to Research 20459 | -4/Factory | Discovered exit to Research (range 14) 20467 | -4/Factory | Discovered exit to Research (range 20) 20517 | -4/Factory | Spotted B-86 Titan 20678 | -4/Factory | Loaded intel: 8 recycling unit locations 21196 | -4/Factory | Identified exit to Upper Caves 21316 | -4/Factory | Learned location of Protoforge (-3) 21374 | -4/Factory | Scrapoid reinforcements arrived 21382 | -4/Factory | Spotted B-86 Titan 21384 | -4/Factory | Cargo convoy interrupted 21398 | -4/Factory | Identified Transdimensional Reconstructor 21398 | -4/Factory | Warped through subspace 21428 | -4/Factory | Lost 4 allies 21487 | -4/Factory | Self-destructed Last Messages --------------- 21464_ Penetrated by Slug. 21464_ Slug penetrates G-67 Veteran. 21464_ Slug penetrates Wall. 21465_ Acquired 25 matter. 21467_ Penetrated by Slug. 21467_ Slug penetrates Wall. 21468_ Knocked back. 21470_ Slug penetrates Wall. 21473_ M-36 Artificer repairs U-05 Engineer. 21475_ Slug penetrates Wall. 21475_ M-36 Artificer repairs U-05 Engineer Wheel. 21478_ Knocked back. 21481_ Slug penetrates Wall. 21481_ Enh. Flexi-carbon Leg destroyed. 21484_ Adv. VSS Leg destroyed. 21484_ Lgt. Antimatter Reactor destroyed. 21485_ B-86 Titan exits siege mode. 21487_ Slug penetrates Wall. 21487_ Exp. Utility Shielding destroyed. Map ----- +----------------------------------------------------+ | ## ####" " """""""????? | | ## """ ##### " ??? | | ##= """ ##### # """"""?????? | | ## """ ##### # ?????????? | | ## =########"" ""### ?????????? | | ## """ # = ! ! #########?????????? | | ## """ /# "" #########?????????? | | ## """ # ! """ "" #########?????????? | | ## # """ T" #######???????????? | | ??####+##+# """ "" ####??????????????? | | ??#### + "" ####??????????????? | | ###### ^# ####??????????????? | | ###### ######+######################## | | ###### ##### + | | ###### ##### #######" !! | | # [# ##### ######## !! | | # = # ######## ! | | # # # | | # "" # # | | # "" + gg/ [! | | # "T # x# =%! | | # "" # # [[% | | # "" + ####"%/"######## | | # #### % #####" #! | | ##+###### #####" " | | # + @ #####" " | | # """ # #### ;;;##" " | | # "T" # #### BB # """ | | # " " # A #### # """ | | # [ # #### + """ | | # # #### # | | # # #### + """ "" | | # # #### #####"## """ "" | | ######### #### ######## """ "" | | #########+##+##+#### ######## | | ####### # ################ | | ####### # ################ | | ???#### # ######### ###### | | ???#### # ######### # #### | | ???#### # ##### #### | | ???#### # #### #"# | | ???#### # | | ???#### # | | ???#### # "" """ | | ???#### + "" """ | | ???#### # "Y """ | | ???#### # "" = | | ???################# "" = | | ???######## ! | | ???####### ! | +----------------------------------------------------+ Best States ------------- Heat Dissipation 82 Energy Generation 45 Energy Capacity 600 Matter Stores 300 Matter Capacity 300 Sight Range 22 Robot Scan Range 18 Terrain Scan Density 10 Armor Coverage 675 Resistance: TH 30 Resistance: EM 75 Core Shielding 20 Utility Shielding 90 Weapon Shielding 33 Evasion (%) 55 Targeting Accuracy 36 Core Analysis 6 Armor Integrity Analysis 30 Recoil Reduction 5 Item Schematics ----------------- Hcp. Storage Unit | -9/Materials | Hacked Imp. Terrain Scan Processor | -9/Recycling | Hacked Assault Drone Bay | -5/Zhirov | Free Exp. Heat Sink | -5/Zhirov | Free Exp. Optical Array | -5/Zhirov | Free Imp. Arc Thrower | -5/Zhirov | Free Robot Schematics ------------------ None Fabricated ------------ Nothing Repaired ---------- Nothing Studied --------- Assault Rifle | -9/Materials | Hacked Grenade Launcher | -9/Materials | Hacked Lgt. Treads | -9/Materials | Hacked Alien Tech Used ----------------- Integrated Dissipator Transdimensional Reconstructor Achievements -------------- None Challenges ------------ None Game ------ Seed TechPowerRipper Manual? 0 Play Time 01:58:21 Cumulative 471.8 hours Start 2025.10.31 @ 02:20:49 End 2025.10.31 @ 05:28:00 Sessions 5 Manual Loads 0 Difficulty Rogue Special Mode None Game No. 255 Rogue 255 Adventurer 0 Explorer 0 Win Type - Total 21 Types 13/1/5/1/0/0/0/1/0/0 Lore% 93 Gallery% 85 Achievement% 77 Wizard Run 0 Options --------- Layout 2 ASCII 0 Keyboard 1 Movement Vi Keybinds 0 Fullscreen 1 Font 28/Terminus Map View 50x52 Zoom Use 0% Tactical HUD 1 Map Filters NONE Filters NONE Steam 1 RUN: a9c0a7d4-de60-42b8-b1a8-329d785843ee